bitfinex-derivatives/quotes_SOLF0:USTF0_20220101
["timestamp","ask_amount","ask_price","bid_price","bid_amount"]
[1641029102007,5.348,172.75,172.72,30.5085]
[1641029102408,5.348,172.75,172.71,12.32354909]
[1641029102908,4.11007217,172.75,172.73,1.24888122]
[1641029103710,29.8992,172.77,172.71,13.57241553]
[1641029104611,4.11019455,172.75,172.71,13.57241553]
[1641029105209,29.8992,172.77,172.71,13.57241553]
[1641029106209,4.11008195,172.75,172.72,12.32354909]
[1641029107111,4.11003272,172.76,172.73,27.66479]
[1641029108011,29.8992,172.77,172.74,1.24886644]
[1641029108212,3.0,172.82,172.74,6.71586644]
[1641029108812,4.10981189,172.79,172.75,13.57245634]
[1641029109513,3.0,172.82,172.75,13.57245634]
[1641029109715,4.10987494,172.78,172.75,13.57245634]
[1641029110415,3.0,172.81,172.74,19.64275026]
[1641029110614,3.0,172.82,172.74,19.64275026]
[1641029111015,27.66479,172.81,172.74,19.64275026]
[1641029111213,27.66479,172.81,172.74,13.57245634]
[1641029111414,4.11020652,172.77,172.74,1.24890725]
[1641029112214,4.11008877,172.78,172.74,19.64286101]
[1641029113022,30.66479,172.82,172.75,12.32354909]
[1641029113625,4.10971962,172.79,172.75,12.32354909]
[1641029114428,32.5327,172.83,172.75,12.32354909]
[1641029114730,32.5327,172.83,172.75,19.25354909]
[1641029115127,4.10942529,172.8,172.75,19.25354909]
[1641029115329,4.10942529,172.8,172.77,12.32354909]
[1641029115831,60.19749,172.83,172.77,12.32354909]
[1641029116633,63.19749,172.83,172.77,12.32354909]
[1641029116835,4.10959671,172.78,172.76,1.24890725]
[1641029117436,63.19749,172.83,172.74,19.64288512]
[1641029118036,60.19749,172.83,172.74,19.64288512]
[1641029118238,4.10961978,172.77,172.74,19.64288512]
[1641029118936,10.36826206,172.82,172.74,19.64288512]
[1641029119440,10.36826206,172.82,172.74,13.57248045]
[1641029119639,4.10970513,172.77,172.74,1.24893136]
[1641029120239,16.51926206,172.82,172.74,1.24893136]
[1641029120638,19.51926206,172.82,172.74,1.24893136]
[1641029120840,4.10973492,172.77,172.74,1.24893136]
[1641029121639,5.231,172.78,172.74,1.24893136]
[1641029122140,4.10973669,172.77,172.74,1.24893136]
[1641029122941,16.70926206,172.82,172.74,19.6427103]
[1641029123643,4.10964975,172.77,172.74,19.6427103]
[1641029124042,8.63964975,172.77,172.74,19.6427103]
[1641029124244,5.78887956,172.75,172.7,32.77749347]
[1641029124446,3.0,172.71,172.7,32.77749347]
[1641029124644,8.872,172.71,172.7,32.77749347]
[1641029124844,8.872,172.71,172.7,21.79749347]
[1641029125244,36.53679,172.71,172.65,49.35249254]
[1641029125446,36.53679,172.71,172.6,27.66479]
[1641029125746,36.53679,172.71,172.6,30.66479]
[1641029125747,8.872,172.71,172.6,30.66479]
[1641029125945,8.872,172.71,172.6,27.66479]
[1641029126147,4.11254258,172.66,172.6,27.66479]
[1641029126345,8.98754258,172.66,172.6,27.66479]
[1641029126845,4.875,172.66,172.6,27.66479]
[1641029127746,4.11291313,172.65,172.6,27.66479]
[1641029128447,4.875,172.66,172.6,27.66479]
[1641029128846,4.875,172.66,172.55,32.1872]
[1641029129246,4.11350366,172.62,172.57,27.66479]
[1641029129450,8.81750366,172.62,172.6,3.0]
[1641029129848,4.704,172.62,172.6,3.0]
[1641029130248,4.704,172.62,172.58,3.0]
[1641029130449,4.11329065,172.64,172.58,3.0]
[1641029130649,4.11254124,172.67,172.58,3.0]
[1641029130851,4.11254124,172.67,172.59,3.0]
[1641029131253,4.11254124,172.67,172.65,27.66479]
[1641029131452,4.11241563,172.66,172.65,27.66479]
[1641029132352,33.6637,172.73,172.65,27.66479]
[1641029132551,3.0,172.73,172.65,27.66479]
[1641029136353,3.0,172.73,172.58,3.0]
[1641029136553,9.627,172.73,172.58,3.0]
[1641029136754,9.627,172.73,172.6,3.0]
[1641029136955,9.627,172.73,172.58,3.0]
[1641029137159,9.627,172.73,172.63,27.66479]
[1641029138860,6.627,172.73,172.63,27.66479]
[1641029139061,9.627,172.73,172.63,27.66479]
[1641029139665,3.0,172.71,172.57,27.66479]
[1641029139860,12.4148744,172.73,172.57,27.66479]
[1641029140061,3.0,172.71,172.57,27.66479]
[1641029140261,30.263,172.7,172.57,27.66479]
[1641029140661,33.263,172.7,172.57,27.66479]
[1641029140862,3.0,172.69,172.57,27.66479]
[1641029141063,6.739,172.69,172.6,3.0]
[1641029141266,6.739,172.69,172.62,27.66479]
[1641029142065,4.11241563,172.7,172.62,27.66479]
[1641029142865,32.6428,172.72,172.62,27.66479]
[1641029143064,32.6428,172.72,172.57,27.66479]
[1641029143065,29.6428,172.72,172.57,27.66479]
[1641029143266,30.66479,172.67,172.57,27.66479]
[1641029143465,32.97679,172.67,172.57,27.66479]
[1641029144568,4.11241563,172.62,172.57,27.66479]
[1641029145067,4.11241563,172.63,172.58,6.06650268]
[1641029145766,4.11241563,172.62,172.58,6.06650268]
[1641029146571,4.11241563,172.63,172.58,6.06650268]
[1641029147170,4.11241563,172.63,172.6,27.66479]
[1641029149973,4.11241563,172.63,172.6,30.66479]
[1641029150173,4.11241563,172.63,172.6,36.17679]
[1641029150375,4.11241563,172.63,172.62,3.0]
[1641029150574,4.11241563,172.64,172.6,36.17679]
[1641029150974,4.11241563,172.67,172.61,6.06372111]
[1641029151175,4.11241563,172.67,172.63,27.66479]
[1641029151577,4.11241563,172.67,172.61,6.06372111]
[1641029151777,10.39241563,172.67,172.6,27.66479]
[1641029151979,4.11241563,172.65,172.6,27.66479]
[1641029153278,4.11241563,172.65,172.63,27.66479]
[1641029154180,4.11241563,172.65,172.57,32.9047461]
[1641029154378,9.32141563,172.65,172.57,32.9047461]
[1641029154781,4.11241563,172.64,172.57,32.9047461]
[1641029154979,4.11241563,172.64,172.6,12.33443549]
[1641029155578,4.11241563,172.63,172.59,12.33443549]
[1641029156179,4.11241563,172.63,172.59,18.39849011]
[1641029157279,4.11241563,172.63,172.62,27.66479]
[1641029157678,4.11241563,172.63,172.59,18.39849011]
[1641029159382,4.11241563,172.63,172.61,27.66479]
[1641029160482,4.11241563,172.63,172.59,12.33443549]
[1641029160684,10.23741563,172.63,172.59,12.33443549]
[1641029160884,10.23741563,172.63,172.59,18.39854039]
[1641029162083,10.23741563,172.63,172.59,12.33443549]
[1641029162284,10.23741563,172.63,172.58,55.32958]
[1641029162285,4.11241563,172.61,172.58,55.32958]
[1641029163187,4.11241563,172.61,172.57,12.33443549]
[1641029163386,4.11241563,172.61,172.59,27.66479]
[1641029163787,6.125,172.63,172.59,27.66479]
[1641029163788,4.11241563,172.6,172.59,27.66479]
[1641029163987,4.11241563,172.6,172.56,39.99922549]
[1641029164387,6.125,172.63,172.56,39.99922549]
[1641029164689,6.125,172.63,172.56,27.66479]
[1641029165992,46.29043993,172.66,172.56,27.66479]
[1641029166192,4.11407857,172.58,172.57,1.24656666]
[1641029169494,4.11407857,172.59,172.57,1.24656666]
[1641029170896,4.11407857,172.61,172.57,19.64782367]
[1641029171497,4.11407857,172.61,172.57,13.58100215]
[1641029171701,7.11407857,172.66,172.57,1.24656666]
[1641029172204,4.11407857,172.66,172.57,1.24656666]
[1641029172806,7.11407857,172.66,172.57,1.24656666]
[1641029176308,4.11407857,172.66,172.57,1.24656666]
[1641029176509,7.11407857,172.66,172.57,1.24656666]
[1641029177009,4.11407857,172.66,172.56,27.66479]
[1641029177310,4.11407857,172.64,172.56,27.66479]
[1641029178609,4.11407857,172.65,172.57,1.23899519]
[1641029179210,4.11407857,172.65,172.56,27.66479]
[1641029180911,4.11407857,172.64,172.56,27.66479]
[1641029181511,4.11407857,172.59,172.56,27.66479]
[1641029181713,4.11407857,172.59,172.57,1.24660186]
[1641029182612,4.11407857,172.6,172.57,1.24660186]
[1641029183614,4.11407857,172.6,172.57,7.78960186]
[1641029184219,4.11407857,172.62,172.58,1.24660186]
[1641029185619,4.11407857,172.63,172.58,19.64583484]
[1641029186219,4.11407857,172.63,172.58,13.58103735]
[1641029186420,30.9477,172.67,172.57,1.24660186]
[1641029186421,4.11407857,172.61,172.57,1.24660186]
[1641029188823,16.76220212,172.66,172.57,1.24660186]
[1641029188824,4.11407857,172.63,172.59,12.33443549]
[1641029189624,4.11407857,172.63,172.61,27.66479]
[1641029190022,4.11407857,172.63,172.59,12.33443549]
[1641029190725,4.11407857,172.62,172.58,12.33443549]
[1641029190926,10.20907857,172.62,172.58,12.33443549]
[1641029191228,6.095,172.62,172.58,12.33443549]
[1641029191626,6.095,172.62,172.59,27.66479]
[1641029192029,4.11200701,172.61,172.59,27.66479]
[1641029192729,6.095,172.62,172.6,1.24660186]
[1641029192929,16.76036277,172.66,172.6,1.24660186]
[1641029193629,16.76036277,172.66,172.59,27.66479]
[1641029193630,4.1119651,172.62,172.59,27.66479]
[1641029194230,16.76036277,172.66,172.59,27.66479]
[1641029194429,4.11210973,172.61,172.6,1.24623745]
[1641029194630,8.82410973,172.61,172.6,1.24623745]
[1641029195230,8.82410973,172.61,172.57,12.33443549]
[1641029195231,4.712,172.61,172.57,12.33443549]
[1641029196234,4.712,172.61,172.54,1.24613524]
[1641029196436,10.50372941,172.61,172.54,1.24613524]
[1641029197137,10.50372941,172.61,172.53,27.66479]
[1641029197138,4.11343653,172.55,172.53,27.66479]
[1641029197336,10.71943653,172.55,172.53,27.66479]
[1641029197736,6.606,172.55,172.53,27.66479]
[1641029197937,6.606,172.55,172.54,1.24609654]
[1641029198540,6.606,172.55,172.53,27.66479]
[1641029199636,6.606,172.55,172.54,1.24611633]
[1641029199840,29.6693,172.6,172.54,1.24611633]
[1641029200238,4.11330909,172.56,172.53,27.66479]
[1641029200938,64.0766461,172.64,172.53,27.66479]
[1641029201141,4.1066931,172.59,172.54,1.24425761]
[1641029201340,10.4906931,172.59,172.54,1.24425761]
[1641029201940,6.384,172.59,172.54,1.24425761]
[1641029202738,6.384,172.59,172.52,12.33443549]
[1641029202940,4.10645625,172.56,172.51,1.24388724]
[1641029203742,4.10658635,172.55,172.51,1.24388724]
[1641029204040,9.96358635,172.55,172.51,1.24388724]
[1641029204441,5.857,172.55,172.5,27.66479]
[1641029205241,4.10682125,172.54,172.51,1.24385074]
[1641029205941,9.96379398,172.55,172.5,27.66479]
[1641029206844,5.857,172.55,172.51,1.2438507]
[1641029209348,59.56459,172.58,172.51,1.2438507]
[1641029209846,4.10680849,172.56,172.51,1.2438507]
[1641029210246,4.10671113,172.57,172.51,1.2438507]
[1641029211048,4.10678879,172.56,172.51,1.2438507]
[1641029211748,59.56459,172.58,172.51,1.2438507]
[1641029212451,4.1153222,172.55,172.51,13.57828619]
[1641029212652,4.1153222,172.55,172.51,19.64568045]
[1641029213252,31.8998,172.58,172.51,19.64568045]
[1641029213954,4.11501707,172.56,172.52,12.33443549]
[1641029214955,31.8998,172.58,172.51,7.31124496]
[1641029215154,4.11549251,172.53,172.5,1.2438507]
[1641029215454,8.33749251,172.53,172.5,1.2438507]
[1641029215952,4.11541848,172.52,172.48,19.66030445]
[1641029216654,4.222,172.53,172.48,19.66030445]
[1641029217453,4.11550957,172.52,172.48,19.66030445]
[1641029218157,4.222,172.53,172.48,19.66030445]
[1641029218958,8.33734351,172.53,172.49,12.34647752]
[1641029219560,4.222,172.53,172.48,1.24643267]
[1641029219960,31.76066804,172.56,172.48,1.24643267]
[1641029220260,31.76066804,172.56,172.48,4.24643267]
[1641029220560,31.76066804,172.56,172.48,1.24643267]
[1641029220861,27.66479,172.56,172.48,1.24643267]
[1641029221061,27.66479,172.56,172.48,7.38743267]
[1641029221460,35.9953914,172.58,172.48,7.38743267]
[1641029221863,34.8998,172.58,172.51,27.66479]
[1641029222065,34.8998,172.58,172.49,13.59291019]
[1641029222863,34.8998,172.58,172.47,30.95719478]
[1641029222864,38.99538247,172.58,172.48,1.24643267]
[1641029223865,3.0,172.57,172.48,19.63061112]
[1641029224063,8.007,172.57,172.48,19.63061112]
[1641029224466,5.007,172.57,172.48,19.63061112]
[1641029225967,5.007,172.57,172.5,27.66479]
[1641029226167,38.99538247,172.58,172.5,27.66479]
[1641029226568,38.99538247,172.58,172.51,1.24643267]
[1641029226766,35.99538247,172.58,172.51,1.24643267]
[1641029227368,31.8998,172.58,172.51,1.24643267]
[1641029228969,4.09558247,172.59,172.51,1.24643267]
[1641029229573,4.09558247,172.61,172.51,1.24643267]
[1641029229975,4.09558247,172.61,172.56,27.66479]
[1641029230174,4.09558247,172.61,172.56,33.03679]
[1641029230374,38.69429596,172.68,172.57,3.0]
[1641029230375,4.09489633,172.6,172.57,3.0]
[1641029230576,4.09489633,172.6,172.58,3.0]
[1641029230775,4.09489633,172.6,172.57,7.0]
[1641029230973,32.9047461,172.68,172.57,7.0]
[1641029231174,35.9047461,172.7,172.59,1.24643267]
[1641029231377,32.9047461,172.7,172.59,1.24643267]
[1641029231575,32.9047461,172.7,172.59,4.24643267]
[1641029231976,32.9047461,172.7,172.64,27.66479]
[1641029232181,43.29169418,172.71,172.64,27.66479]
[1641029232777,32.9047461,172.72,172.64,27.66479]
[1641029233277,3.0,172.71,172.64,27.66479]
[1641029233476,35.9047461,172.72,172.64,27.66479]
[1641029233976,32.9047461,172.72,172.64,27.66479]
[1641029237288,35.9047461,172.72,172.64,27.66479]
[1641029237788,35.9047461,172.71,172.62,27.66479]
[1641029237990,60.5695361,172.71,172.62,27.66479]
[1641029238286,32.9047461,172.71,172.62,27.66479]
[1641029238688,10.38694808,172.7,172.63,1.24659445]
[1641029239487,37.9817461,172.72,172.63,1.24659445]
[1641029240088,40.9817461,172.72,172.66,27.66479]
[1641029240290,37.9817461,172.72,172.66,27.66479]
[1641029241393,40.9817461,172.72,172.66,27.66479]
[1641029241693,37.9817461,172.72,172.66,27.66479]
[1641029242192,40.9817461,172.72,172.66,27.66479]
[1641029243292,37.9817461,172.72,172.66,27.66479]
[1641029243693,8.077,172.72,172.63,32.562]
[1641029244193,5.077,172.72,172.63,32.562]
[1641029244393,3.0,172.72,172.63,32.562]
[1641029244593,8.568,172.72,172.63,32.562]
[1641029244795,3.0,172.71,172.63,32.562]
[1641029244993,8.568,172.72,172.63,32.562]
[1641029245194,5.568,172.72,172.63,32.562]
[1641029245598,30.66479,172.73,172.63,32.562]
[1641029246095,27.66479,172.73,172.65,27.66479]
[1641029246295,30.66479,172.73,172.65,27.66479]
[1641029246696,3.0,172.74,172.65,27.66479]
[1641029248101,27.66479,172.73,172.65,27.66479]
[1641029248300,3.0,172.72,172.65,27.66479]
[1641029249503,46.28907526,172.72,172.65,27.66479]
[1641029249702,43.28907526,172.72,172.65,27.66479]
[1641029250507,32.9047461,172.72,172.65,27.66479]
[1641029252004,13.38432916,172.74,172.65,27.66479]
[1641029252005,13.38432916,172.74,172.66,1.24665501]
[1641029252206,3.0,172.73,172.66,1.24665501]
[1641029252404,8.278,172.73,172.66,1.24665501]
[1641029256108,5.278,172.73,172.66,1.24665501]
[1641029256309,46.28907526,172.74,172.66,1.24665501]
[1641029257309,3.0,172.73,172.66,1.24665501]
[1641029258116,43.28907526,172.74,172.72,27.66479]
[1641029258311,43.28907526,172.74,172.72,32.26079]
[1641029258710,43.28907526,172.74,172.72,4.596]
[1641029259112,32.9047461,172.77,172.72,4.596]
[1641029259512,32.9047461,172.77,172.67,6.186]
[1641029260116,32.9047461,172.76,172.73,27.66479]
[1641029260914,28.14635909,172.78,172.73,27.66479]
[1641029260915,32.9047461,172.77,172.73,27.66479]
[1641029262716,10.38432916,172.78,172.73,27.66479]
[1641029262916,10.38432916,172.78,172.68,32.5467]
[1641029263116,13.38432916,172.78,172.68,32.5467]
[1641029263518,10.38432916,172.78,172.68,32.5467]
[1641029263717,3.0,172.77,172.68,32.5467]
[1641029263918,10.38432916,172.78,172.68,32.5467]
[1641029264318,10.38432916,172.78,172.71,27.66479]
[1641029267022,32.055,172.79,172.71,27.66479]
[1641029267222,3.0,172.77,172.68,32.5467]
[1641029267421,32.055,172.79,172.68,32.5467]
[1641029267622,3.0,172.78,172.68,32.5467]
[1641029267822,3.0,172.77,172.68,32.5467]
[1641029268022,3.0,172.75,172.68,32.5467]
[1641029268223,5.663,172.75,172.68,32.5467]
[1641029270224,5.663,172.75,172.68,60.21149]
[1641029272927,10.32441125,172.78,172.68,60.21149]
[1641029273427,32.9047461,172.77,172.69,1.24672314]
[1641029274330,35.9047461,172.77,172.69,1.24672314]
[1641029275429,32.9047461,172.75,172.68,60.21149]
[1641029276729,32.9047461,172.77,172.69,1.24673305]
[1641029277132,35.9047461,172.77,172.69,1.24673305]
[1641029277331,32.9047461,172.77,172.69,1.24673305]
[1641029278229,43.22915735,172.78,172.69,1.24673305]
[1641029278429,46.22915735,172.78,172.71,27.66479]
[1641029278630,43.22915735,172.78,172.71,27.66479]
[1641029279731,10.32441125,172.78,172.71,27.66479]
[1641029279934,3.0,172.77,172.68,60.21149]
[1641029280432,49.45915735,172.78,172.68,60.21149]
[1641029280630,49.45915735,172.78,172.71,27.66479]
[1641029281335,43.22915735,172.78,172.71,27.66479]
[1641029281737,46.22915735,172.78,172.71,21.08692288]
[1641029282139,13.32441125,172.78,172.71,21.08692288]
[1641029283439,10.32441125,172.78,172.71,21.08692288]
[1641029284340,13.32441125,172.78,172.71,21.08692288]
[1641029284539,10.32441125,172.78,172.71,21.08692288]
[1641029287042,16.21241125,172.78,172.71,21.08692288]
[1641029287645,19.21241125,172.78,172.71,21.08692288]
[1641029287842,16.21241125,172.78,172.71,21.08692288]
[1641029288142,19.21241125,172.78,172.71,21.08692288]
[1641029288542,3.0,172.77,172.68,60.21149]
[1641029289446,3.0,172.76,172.69,1.24607019]
[1641029290046,35.9047461,172.77,172.69,1.24607019]
[1641029290845,4.10901189,172.7,172.69,1.24607019]
[1641029292449,5.831,172.72,172.69,1.24607019]
[1641029296253,31.2514,172.75,172.69,1.24607019]
[1641029296452,34.2514,172.75,172.69,1.24607019]
[1641029297053,4.11128037,172.7,172.69,1.24607019]
[1641029299056,9.97428037,172.71,172.69,1.24607019]
[1641029300057,4.11128037,172.71,172.69,1.24607019]
[1641029300558,4.11128037,172.71,172.69,28.91086019]
[1641029301257,4.11128037,172.71,172.7,1.24607019]
[1641029304663,4.11128037,172.72,172.7,1.24607019]
[1641029308768,4.11128037,172.71,172.7,1.24607019]
[1641029310070,4.11128037,172.72,172.7,1.24607019]
[1641029311970,4.11128037,172.71,172.7,1.24607019]
[1641029319280,4.11128037,172.72,172.7,1.24607019]
[1641029327289,4.11128037,172.71,172.7,1.24607019]
[1641029334502,4.11128037,172.72,172.7,1.24607019]
[1641029335100,4.11128037,172.73,172.7,1.24607019]
[1641029335802,4.11128037,172.72,172.7,1.24607019]
[1641029337905,4.11128037,172.74,172.7,19.65671458]
[1641029338104,4.11128037,172.74,172.7,22.65671458]
[1641029338603,4.11128037,172.76,172.71,12.34647752]
[1641029339204,4.11128037,172.76,172.75,27.66479]
[1641029339404,4.11128037,172.76,172.71,13.59254771]
[1641029339906,4.11128037,172.75,172.71,13.59254771]
[1641029341307,4.11128037,172.75,172.74,27.66479]
[1641029341708,13.37105827,172.81,172.74,27.66479]
[1641029341906,13.37105827,172.81,172.74,21.08836168]
[1641029342208,3.0,172.81,172.74,21.08836168]
[1641029343110,46.27580437,172.81,172.74,21.08836168]
[1641029343813,43.27580437,172.81,172.74,21.08836168]
[1641029344611,4.10847417,172.76,172.75,1.24685312]
[1641029345411,10.37105827,172.81,172.74,21.08836168]
[1641029346213,4.10848332,172.75,172.74,21.08836168]
[1641029348115,10.37105827,172.81,172.74,21.08836168]
[1641029348916,4.10995654,172.75,172.74,21.08836168]
[1641029349516,10.37105827,172.81,172.74,21.08836168]
[1641029350420,10.37105827,172.81,172.75,3.0]
[1641029350617,10.37105827,172.81,172.74,21.08836168]
[1641029350618,62.3800461,172.82,172.74,21.08836168]
[1641029350818,4.10940476,172.77,172.74,24.08836168]
[1641029351018,4.10940476,172.77,172.75,3.0]
[1641029352219,4.10940476,172.8,172.76,12.34647752]
[1641029352420,4.10940476,172.8,172.76,15.34647752]
[1641029352821,4.10940476,172.8,172.76,12.34647752]
[1641029353821,4.10940476,172.8,172.79,27.66479]
[1641029357322,29.4753,172.82,172.79,27.66479]
[1641029357523,7.10940476,172.88,172.79,27.66479]
[1641029358127,3.0,172.88,172.79,27.66479]
[1641029361128,3.0,172.84,172.79,27.66479]
[1641029361328,3.0,172.83,172.79,27.66479]
[1641029361526,3.0,172.83,172.71,20.86647752]
[1641029361727,7.686,172.84,172.71,12.34647752]
[1641029361927,27.66479,172.82,172.73,27.66479]
[1641029362128,30.66479,172.82,172.73,27.66479]
[1641029364930,3.0,172.79,172.73,27.66479]
[1641029365131,3.0,172.78,172.73,27.66479]
[1641029365330,9.615,172.79,172.73,27.66479]
[1641029365532,6.615,172.79,172.73,27.66479]
[1641029365730,6.615,172.79,172.71,27.66479]
[1641029365932,9.615,172.79,172.71,27.66479]
[1641029366432,41.3889,172.79,172.71,27.66479]
[1641029366730,4.11047246,172.72,172.71,27.66479]
[1641029372437,5.324,172.77,172.71,27.66479]
[1641029373138,34.7739,172.79,172.71,27.66479]
[1641029373940,62.43869,172.79,172.71,27.66479]
[1641029374539,3.0,172.78,172.71,27.66479]
[1641029376146,62.43869,172.79,172.71,27.66479]
[1641029376448,3.0,172.78,172.71,27.66479]
[1641029376849,3.0,172.77,172.71,27.66479]
[1641029377047,62.43869,172.79,172.71,27.66479]
[1641029377248,3.0,172.78,172.71,27.66479]
[1641029377446,7.222,172.78,172.71,27.66479]
[1641029377946,3.0,172.77,172.71,27.66479]
[1641029378248,3.0,172.76,172.71,27.66479]
[1641029378447,3.0,172.77,172.71,27.66479]
[1641029379351,3.0,172.75,172.71,27.66479]
[1641029379551,3.0,172.77,172.71,27.66479]
[1641029379950,8.33247246,172.78,172.71,27.66479]
[1641029380351,4.11047246,172.77,172.71,27.66479]
[1641029381552,7.11047246,172.78,172.71,27.66479]
[1641029381952,4.11047246,172.78,172.71,27.66479]
[1641029382353,4.11047246,172.77,172.71,27.66479]
[1641029382552,7.11047246,172.77,172.71,27.66479]
[1641029382753,9.13247246,172.77,172.62,12.34647752]
[1641029382953,3.0,172.73,172.63,31.6292]
[1641029383152,7.656,172.73,172.63,31.6292]
[1641029383554,4.656,172.73,172.63,32.86653503]
[1641029383753,31.3406,172.72,172.63,32.86653503]
[1641029383953,27.66479,172.71,172.63,32.86653503]
[1641029384353,27.66479,172.71,172.63,31.6292]
[1641029385955,33.59179,172.71,172.63,31.6292]
[1641029386854,4.11047246,172.68,172.64,13.59397263]
[1641029387054,4.11047246,172.68,172.64,19.66190374]
[1641029391262,4.11047246,172.68,172.64,13.59397263]
[1641029391461,4.11047246,172.67,172.64,1.24749511]
[1641029394464,4.11047246,172.68,172.64,19.66195891]
[1641029396167,4.11047246,172.69,172.65,12.34647752]
[1641029397466,4.11047246,172.69,172.64,7.31548139]
[1641029397467,4.11047246,172.68,172.64,19.66195891]
[1641029398269,4.11047246,172.66,172.64,6.06798628]
[1641029398469,4.11047246,172.66,172.62,12.34647752]
[1641029399672,27.66479,172.71,172.61,32.3104]
[1641029399873,27.66479,172.71,172.61,37.0944]
[1641029401075,35.45107246,172.72,172.61,37.0944]
[1641029401674,35.45107246,172.72,172.62,1.23729665]
[1641029401675,31.3406,172.72,172.62,1.23729665]
[1641029402177,4.11047246,172.66,172.62,19.65184121]
[1641029403078,4.11199117,172.67,172.63,12.34647752]
[1641029404281,10.38032134,172.71,172.63,27.66479]
[1641029404986,10.38032134,172.71,172.63,30.66479]
[1641029405182,4.11196733,172.67,172.64,1.23729665]
[1641029405382,4.11196733,172.67,172.65,3.0]
[1641029405584,6.733e-05,172.67,172.64,7.20729665]
[1641029405986,6.733e-05,172.67,172.65,3.0]
[1641029406183,31.7708,172.74,172.66,41.24856417]
[1641029406884,31.7708,172.74,172.66,13.58377417]
[1641029407084,31.7708,172.74,172.67,1.23729665]
[1641029408586,31.7708,172.74,172.65,12.34647752]
[1641029408788,38.3758,172.74,172.65,12.34647752]
[1641029408988,38.3758,172.74,172.66,12.34647752]
[1641029409990,38.3758,172.74,172.66,1.23729665]
[1641029410887,38.3758,172.74,172.65,43.39647752]
[1641029411488,38.3758,172.74,172.66,1.247801]
[1641029412289,30.66479,172.73,172.66,1.247801]
[1641029412890,27.66479,172.73,172.66,1.247801]
[1641029413191,10.37868132,172.72,172.66,1.247801]
[1641029413794,10.37868132,172.72,172.65,31.05]
[1641029413994,10.37868132,172.72,172.63,67.67605752]
[1641029414691,10.37868132,172.72,172.64,1.24775542]
[1641029415393,31.7708,172.74,172.65,12.34647752]
[1641029415593,31.7708,172.74,172.66,30.4874]
[1641029416895,34.7708,172.74,172.67,1.24775542]
[1641029417096,10.37772295,172.73,172.67,1.24775542]
[1641029417296,16.05172295,172.73,172.67,1.24775542]
[1641029418195,5.674,172.73,172.64,50.35914231]
[1641029418995,5.674,172.73,172.65,19.66284231]
[1641029419799,16.05303505,172.73,172.65,1.24775335]
[1641029420399,5.674,172.73,172.65,19.66274723]
[1641029422502,31.7708,172.74,172.65,19.66274723]
[1641029423902,31.7708,172.74,172.65,1.24775335]
[1641029427408,3.0,172.71,172.65,1.24775335]
[1641029427606,6.564,172.71,172.65,1.24775335]
[1641029428012,6.564,172.71,172.64,30.6963]
[1641029428512,9.564,172.71,172.64,30.6963]
[1641029429011,27.66479,172.7,172.64,30.6963]
[1641029429211,27.66479,172.7,172.64,24.11694024]
[1641029429715,27.66479,172.7,172.65,1.24773304]
[1641029432417,27.66479,172.7,172.64,1.24773304]
[1641029432616,59.43229,172.7,172.64,1.24773304]
[1641029440931,10.38087968,172.69,172.64,1.24773304]
[1641029441832,27.66479,172.7,172.64,1.24773304]
[1641029445543,30.5474,172.74,172.64,4.24773304]
[1641029445746,30.5474,172.74,172.65,30.4788]
[1641029446944,30.5474,172.74,172.66,1.24773304]
[1641029447145,30.5474,172.74,172.66,4.24773304]
[1641029447344,30.5474,172.74,172.7,27.66479]
[1641029447545,32.9047461,172.77,172.7,27.66479]
[1641029447744,63.6645461,172.77,172.7,27.66479]
[1641029448146,30.7598,172.77,172.7,27.66479]
[1641029448545,30.7598,172.77,172.67,1.24773304]
[1641029448945,30.7598,172.77,172.65,42.82527752]
[1641029449348,30.7598,172.77,172.68,27.66479]
[1641029450449,30.7598,172.77,172.69,1.2451844]
[1641029451053,30.7598,172.77,172.69,30.8311844]
[1641029451853,30.7598,172.77,172.69,29.586]
[1641029454357,10.37564609,172.76,172.7,1.24822737]
[1641029455359,10.37564609,172.76,172.71,27.66479]
[1641029456163,5.78619991,172.78,172.71,27.66479]
[1641029456963,5.78619991,172.78,172.69,29.586]
[1641029457163,10.07319991,172.78,172.69,29.586]